[Event "European Corporate Championship 2022"]
[Site "Rotterdam"]
[Date "2022.06.19"]
[Round "9.19"]
[White "IJzermans, Cees"]
[Black "Jansen, Bob"]
[Result "1-0"]
[ECO "A00"]
[WhiteElo "2115"]
[BlackElo "2174"]
[Annotator "TA"]
[PlyCount "63"]
[EventDate "2022.06.18"]
[EventType "team-tourn"]
[EventCountry "NED"]
[SourceTitle "playchess.com"]
[Source "ChessBase"]
[SourceQuality "1"]
[TimeControl "900+5"]

{[%evp 9,63,-4,49,14,26,20,35,28,40,24,35,5,6,6,42,30,59,64,62,54,54,64,64,60,72,65,48,28,34,29,58,57,45,58,148,89,88,95,96,97,108,105,105,70,73,71,105,105,142,154,156,152,400,385,379,370]} 1. b4 {[%emt 0:00:03]} d5 {[%emt 0:00:11]} 2. Bb2 {[%emt 0:00:02]} Nd7 {[%emt 0:00:05]} 3. Nf3 {[%emt 0:00:03]} Ngf6 {[%emt 0:00:05]} 4. e3 {[%emt 0:00:03]} c6 {[%emt 0:00:12]} 5. c4 {[%emt 0:01:49]} Qc7 {[%emt 0:00:25] [#]} (5... e5 $11) 6. d4 $146 {[%emt 0:00:04] A00: Irregular Openings.} ({Predecessor:} 6. Nc3 e6 7. a3 h6 8. Be2 Bd6 9. Rc1 Qb8 10. d4 O-O 11. Qb3 Re8 12. b5 dxc4 13. Bxc4 {1-0 (61) Franke,R (2054)-Bogorad,M (2195) Bergen 2014}) 6... e6 {[%emt 0:00:08]} 7. a3 {[%emt 0:00:03]} a5 {[%emt 0:00:10]} 8. b5 {[%emt 0:00:04] White is slightly better.} Be7 {[%emt 0:00:22]} 9. Nbd2 {[%emt 0:00:03]} cxb5 {[%emt 0:00:57]} 10. cxb5 {[%emt 0:00:03]} O-O {[%emt 0:00:20]} 11. Bd3 {[%emt 0:00:08]} Bd6 {[%emt 0:00:32]} 12. O-O {[%emt 0:00:10]} e5 {[%emt 0:00:16]} 13. Rc1 {[%emt 0:00:04]} Qb8 {[%emt 0:00:02] White must now prevent ...e4.} 14. dxe5 {[%emt 0:00:09] White is more active.} (14. Nxe5 {seems wilder.} Nxe5 15. dxe5 Bxe5 16. Bxe5 Qxe5 17. Qa4) 14... Nxe5 {[%emt 0:00:03]} 15. Nxe5 {[%emt 0:00:09]} Bxe5 {[%emt 0:00:03]} 16. Bxe5 {[%emt 0:00:02]} Qxe5 {[%emt 0:00:02]} 17. Nf3 {[%emt 0:00:02]} Qd6 {[%emt 0:00:25]} 18. a4 {[%emt 0:00:07]} Bg4 {[%emt 0:00:10]} 19. h3 {[%emt 0:00:03]} Bh5 {[%emt 0:00:13]} 20. Be2 {[%emt 0:00:02]} Rfc8 {[%emt 0:00:39]} 21. Qd4 {[%emt 0:00:05][%cal Od4a7]} Qb4 {[%emt 0:01:23]} (21... h6 $14) 22. Qxb4 {[%emt 0:00:14]} (22. Rxc8+ $142 $1 Rxc8 23. Qb6) 22... axb4 $16 {[%emt 0:00:01]} 23. Rxc8+ {[%emt 0:00:02]} Rxc8 {[%emt 0:00:01] [#]} 24. Rb1 $1 {[%emt 0:00:03]} Rc2 {[%emt 0:00:13]} 25. Bd1 {[%emt 0:01:01]} Ra2 {[%emt 0:00:36]} 26. Rxb4 {[%emt 0:00:03]} Ra1 {[%emt 0:00:02] And now ...Bxf3 would win.} 27. Rd4 {[%emt 0:00:02]} Kf8 {[%emt 0:00:45]} 28. Kh2 {[%emt 0:01:52]} Bxf3 {[%emt 0:00:44]} 29. Bxf3 {[%emt 0:00:05]} Ke7 {[%emt 0:00:04] [#]} 30. g4 $1 {[%emt 0:00:10][%cal Bg2g4,Bg4g5][%mdl 32]} Kd6 $2 {[%emt 0:00:14]} (30... h6 $16 31. h4 b6) 31. g5 $18 {[%emt 0:00:03]} Nd7 {[%emt 0:00:12]} 32. Bxd5 {Weighted Error Value: White=0.09 (flawless) /Black=0.28 (precise)} 1-0